bitfinex-derivatives/quotes_ETHF0:USTF0_20250224
["timestamp","ask_amount","ask_price","bid_price","bid_amount"]
[1740407495660,3.2078,2681.7,2681.4,3.62958919]
[1740407495661,0.74574,2681.6,2681.4,0.00558919]
[1740407495859,0.74575,2681.6,2681.4,0.75135919]
[1740407496053,3.2078,2681.7,2681.4,0.00558919]
[1740407496356,3.95352,2681.7,2681.5,0.74574]
[1740407496555,3.2078,2681.7,2681.4,0.00558919]
[1740407496755,0.74576,2681.5,2681.4,0.00558919]
[1740407497164,0.74574,2681.6,2681.4,0.00558919]
[1740407497357,3.2078,2681.7,2681.4,0.00558919]
[1740407497665,3.2078,2682.0,2681.4,0.00558919]
[1740407497969,0.00558919,2682.3,2682.2,0.74556]
[1740407498156,3.2078,2683.2,2682.4,1.86376]
[1740407498358,3.2078,2683.2,2683.1,0.74531]
[1740407498668,3.2078,2683.2,2683.1,0.56629955]
[1740407498862,3.2078,2683.2,2682.3,4.77147377]
[1740407498863,0.74551,2682.4,2682.3,4.77147377]
[1740407499068,3.2078,2682.4,2682.3,0.56629031]
[1740407499364,3.2078,2682.4,2682.3,0.56627363]
[1740407499666,3.95331,2682.4,2682.3,0.56627363]
[1740407499961,0.00558919,2682.6,2682.1,0.00558919]
[1740407500161,0.00558919,2682.6,2682.5,0.74548]
[1740407500358,0.00558919,2682.6,2682.5,1.30580402]
[1740407500561,0.00558919,2682.6,2682.5,1.30567848]
[1740407500764,3.2078,2682.9,2682.8,0.7454]
[1740407500966,3.2078,2682.9,2682.8,1.30559848]
[1740407501163,3.2078,2682.9,2682.8,1.2960613]
[1740407501362,3.2078,2682.9,2682.7,3.655]
[1740407501562,3.2078,2682.9,2682.8,0.7454]
[1740407501764,3.2078,2683.4,2683.3,0.74526]
[1740407502466,3.2078,2683.4,2682.8,1.8635]
[1740407502663,3.2078,2683.4,2683.3,0.74526]
[1740407502862,3.2078,2683.4,2683.3,1.29599741]
[1740407503063,3.95303,2683.4,2682.2,40.8]
[1740407503266,3.2078,2683.1,2683.0,0.74533]
[1740407503468,3.2078,2683.1,2683.0,1.29608246]
[1740407503667,3.95311,2683.1,2683.0,0.55075246]
[1740407503967,3.2078,2683.1,2683.0,0.55075246]
[1740407504272,3.2078,2683.1,2683.0,1.29609246]
[1740407504563,3.2078,2683.1,2683.0,1.29695543]
[1740407504772,3.2078,2683.1,2683.0,1.76328574]
[1740407505270,3.2078,2683.1,2683.0,1.29695817]
[1740407505565,3.2078,2683.1,2683.0,0.55161817]
[1740407505872,3.2078,2683.1,2683.0,1.29695817]
[1740407506266,3.95303,2683.4,2683.3,0.74526]
[1740407506462,3.2078,2683.4,2683.3,1.29687817]
[1740407506667,3.2078,2683.4,2683.3,1.29839672]
[1740407507170,3.2078,2683.4,2683.3,1.766009]
[1740407507762,3.2078,2683.4,2683.3,1.020749]
[1740407508076,3.2078,2683.4,2683.3,1.766009]
[1740407508369,3.2078,2683.4,2683.3,1.020749]
[1740407508565,3.2078,2683.4,2683.3,1.766009]
[1740407508767,3.95303,2683.4,2683.3,1.020749]
[1740407509170,3.2078,2683.4,2683.3,1.766009]
[1740407509572,9.19e-06,2683.6,2683.5,0.7452]
[1740407509872,9.19e-06,2683.6,2683.5,4.50613672]
[1740407510072,9.19e-06,2683.6,2683.5,10.973749]
[1740407510373,9.19e-06,2683.6,2683.5,48.565949]
[1740407510571,9.19e-06,2683.6,2683.5,51.773749]
[1740407511070,9.19e-06,2683.6,2683.5,45.773749]
[1740407511267,9.19e-06,2683.6,2683.5,1.765949]
[1740407511473,9.19e-06,2683.6,2683.5,5.434949]
[1740407512072,0.01134633,2683.6,2683.5,5.434949]
[1740407512371,0.01134633,2683.6,2683.5,11.434949]
[1740407512767,0.01134633,2683.6,2683.5,5.43373338]
[1740407513174,0.75651633,2683.6,2683.5,1.01953338]
[1740407513373,3.96431633,2683.6,2683.5,0.46761228]
[1740407513569,3.96431633,2683.6,2682.9,0.74536]
[1740407513570,0.74535,2683.0,2682.9,0.74536]
[1740407513870,3.2078,2683.4,2683.3,0.74526]
[1740407514270,3.2078,2683.4,2682.8,5.54845]
[1740407514573,3.95303,2683.4,2683.3,0.74526]
[1740407514872,0.01134633,2683.6,2683.5,0.7452]
[1740407515071,0.01134633,2683.6,2683.5,1.2970769]
[1740407515871,3.21914633,2683.6,2683.5,1.2970769]
[1740407516072,3.96431633,2683.6,2683.5,0.5518769]
[1740407516280,0.7452,2683.5,2682.8,11.9951057]
[1740407516485,3.2078,2683.3,2683.2,0.74528]
[1740407516666,3.2078,2683.3,2683.2,1.29724305]
[1740407518073,0.74532,2683.1,2683.0,0.74533]
[1740407518271,0.74529,2683.2,2683.1,0.7453]
[1740407518575,3.2078,2683.3,2683.2,0.74528]
[1740407518877,3.2078,2683.3,2683.2,0.54382789]
[1740407519171,3.95306,2683.3,2683.2,0.54382789]
[1740407519377,0.74534,2683.1,2682.9,4.42735]
[1740407519669,3.2078,2683.3,2683.0,0.54438417]
[1740407519869,6.33e-06,2683.6,2683.5,0.7452]
[1740407520071,6.33e-06,2683.6,2683.5,4.96858417]
[1740407520468,6.33e-06,2683.6,2683.5,45.76858417]
[1740407520766,6.33e-06,2683.6,2683.5,48.97656485]
[1740407520967,6.33e-06,2683.6,2683.5,45.76876485]
[1740407521269,6.33e-06,2683.6,2683.5,44.479]
[1740407521570,6.33e-06,2683.6,2682.3,3.2078]
[1740407521571,1.86306,2683.5,2682.3,3.2078]
[1740407521775,3.2078,2683.0,2682.9,0.74537]
[1740407521970,3.2078,2683.0,2682.9,42.09011482]
[1740407522366,6.33e-06,2683.6,2682.9,42.09011482]
[1740407522367,3.2078,2683.1,2683.0,0.74534]
[1740407522576,3.2078,2683.1,2683.0,0.54474482]
[1740407522777,3.95311,2683.1,2683.0,0.54474482]
[1740407523672,3.2078,2683.1,2682.7,40.8]
[1740407523872,3.2078,2682.8,2682.7,0.74542]
[1740407524065,3.2078,2682.8,2682.7,1.29080824]
[1740407524377,3.2078,2682.8,2682.7,1.2908056]
[1740407524575,3.2078,2683.1,2682.7,1.29101652]
[1740407524766,3.2078,2683.1,2682.8,0.54559652]
[1740407524968,3.2078,2682.8,2682.4,40.8]
[1740407525171,0.74543,2682.7,2682.5,0.5456159]
[1740407525468,3.2078,2682.8,2682.4,40.8]
[1740407525669,3.2078,2682.5,2682.1,0.00558919]
[1740407525981,3.668,2683.2,2682.1,0.75117919]
[1740407525982,3.2078,2682.2,2682.1,0.75117919]
[1740407526278,3.2078,2682.2,2682.1,1.29723715]
[1740407526474,3.2078,2682.2,2682.1,0.00558919]
[1740407526475,3.95336,2682.2,2682.1,0.00558919]
[1740407526772,3.2078,2682.2,2682.1,0.00558919]
[1740407526975,3.2078,2682.2,2682.1,0.75117919]
[1740407527371,3.2078,2683.0,2682.5,0.74548]
[1740407527579,3.2078,2683.4,2683.3,0.74526]
[1740407527772,4.35890633,2683.6,2683.5,0.7452]
[1740407527967,4.35890633,2683.6,2683.5,1.29197483]
[1740407528274,3.20780633,2683.6,2683.5,1.29197816]
[1740407528871,3.20780633,2683.6,2683.5,0.54677816]
[1740407529073,3.20780633,2683.6,2683.5,1.29197816]
[1740407529675,6.33e-06,2683.6,2683.5,1.29197816]
[1740407529978,6.33e-06,2683.6,2683.5,4.98897816]
[1740407530473,3.2078,2684.8,2684.7,0.74487]
[1740407530678,3.2078,2685.1,2684.9,0.74479]
[1740407531077,3.2078,2685.1,2684.8,0.74483]
[1740407531381,0.5811,2685.6,2684.9,4.244329]
[1740407531577,0.5599,2685.8,2685.7,0.74459]
[1740407531772,3.2078,2686.2,2685.7,4.246329]
[1740407531975,3.2078,2686.6,2686.0,3.2078]
[1740407532173,3.2078,2686.6,2686.1,0.546329]
[1740407532374,3.2078,2686.6,2686.5,0.74437]
[1740407532571,1.1055,2687.6,2686.5,0.546329]
[1740407532572,3.2078,2686.9,2686.5,0.546329]
[1740407532773,3.2078,2686.9,2686.8,0.74429]
[1740407532979,3.2078,2687.5,2686.8,4.24643314]
[1740407533181,3.2078,2687.5,2687.4,0.74412]
[1740407533381,3.2078,2687.5,2687.3,3.717]
[1740407533679,3.95189,2687.5,2687.3,3.717]
[1740407533886,0.74412,2687.4,2687.3,3.717]
[1740407534087,3.9519,2687.5,2687.3,3.717]
[1740407534387,3.2078,2687.5,2687.3,3.717]
[1740407534682,3.2078,2687.5,2687.4,40.8]
[1740407535186,3.95189,2687.5,2687.4,40.8]
[1740407535884,3.2078,2687.5,2686.1,23.88038919]
[1740407536084,3.2078,2687.0,2686.2,4.24260798]
[1740407536288,3.2078,2687.0,2686.9,0.74426]
[1740407536483,3.2078,2687.3,2686.9,3.702]
[1740407537185,3.2078,2687.3,2686.7,3.2078]
[1740407537482,3.2078,2688.1,2687.2,3.2078]
[1740407537692,3.2078,2688.6,2687.9,3.2078]
[1740407537984,0.74382,2688.5,2688.1,0.74391]
[1740407538182,3.9516,2688.6,2688.3,0.74386]
[1740407538385,3.9516,2688.6,2688.0,44.51958919]
[1740407538386,3.2078,2688.6,2688.1,3.713]
[1740407538578,0.7439,2688.2,2688.1,3.713]
[1740407539084,3.2078,2688.3,2688.0,0.00558919]
[1740407539589,3.2078,2688.3,2688.1,3.706]
[1740407539590,3.9517,2688.3,2688.1,3.706]
[1740407539787,3.2078,2688.3,2688.1,3.706]
[1740407539993,0.74393,2688.1,2688.0,0.00558919]
[1740407540491,0.74392,2688.2,2688.0,0.00558919]
[1740407540786,3.2078,2688.3,2688.0,3.70858919]
[1740407540991,3.2078,2688.9,2688.0,3.70858919]
[1740407541589,3.2078,2688.9,2688.2,3.2078]
[1740407541791,3.2078,2688.6,2688.0,0.00558919]
[1740407542094,3.2078,2688.6,2688.1,3.708]
[1740407542385,3.2078,2689.2,2688.9,0.74369]
[1740407542580,3.2078,2689.2,2688.8,4.47472]
[1740407542781,0.74368,2689.0,2688.9,3.728]
[1740407542982,1.85942,2688.7,2688.1,4.8315679]
[1740407543182,0.7439,2688.2,2688.1,4.8315679]
[1740407543379,3.9517,2688.2,2688.1,4.8315679]
[1740407543578,5.06759,2688.2,2687.3,0.08275673]
[1740407543792,3.2078,2687.7,2687.3,0.08275673]
[1740407543982,3.2078,2688.3,2687.3,5.15090673]
[1740407544186,3.2078,2688.3,2687.3,3.29055673]
[1740407544385,3.2078,2687.7,2687.3,0.08275673]
[1740407544588,0.74412,2687.4,2687.3,3.84675673]
[1740407544784,0.0055542,2687.8,2687.3,3.84675673]
[1740407545090,0.74412,2687.4,2687.3,0.08275673]
[1740407545287,0.7443,2686.8,2686.6,3.76]
[1740407545491,3.2078,2687.4,2686.6,5.62082]
[1740407545688,0.0055542,2687.8,2686.6,3.76]
[1740407545689,3.2078,2687.1,2686.6,3.76]
[1740407545887,0.74431,2686.8,2686.6,3.76]
[1740407546087,3.2078,2687.1,2686.6,4.50434]
[1740407546292,3.2078,2687.1,2686.1,20.64]
[1740407546588,0.74442,2686.3,2686.2,3.777]
[1740407546786,3.2078,2686.5,2686.3,0.0055787]
[1740407546988,3.95218,2686.5,2686.3,0.0055787]
[1740407547296,3.95218,2686.5,2685.7,1.86147]
[1740407547297,3.2078,2686.5,2685.5,3.795]
[1740407547889,3.722,2686.4,2685.5,3.795]
[1740407548087,3.2078,2685.8,2685.1,3.2078]
[1740407548388,3.2078,2685.9,2685.0,20.638]
[1740407548694,3.2078,2685.2,2685.0,20.638]
[1740407548887,0.74476,2685.1,2685.0,20.638]
[1740407549079,3.2078,2685.2,2684.8,0.0055787]
[1740407549283,3.2078,2684.9,2684.8,0.0055787]
[1740407550192,0.74481,2684.9,2684.8,0.0055787]
[1740407550886,3.2078,2685.1,2684.8,3.8375787]
[1740407551087,3.7611,2685.5,2684.8,7.0453787]
[1740407551287,20.64,2686.8,2685.6,0.74462]
[1740407551288,3.2078,2686.2,2685.6,0.74462]
[1740407551489,3.2078,2686.5,2685.6,45.37862]
[1740407551684,0.74441,2686.4,2686.0,0.7445]
[1740407551888,0.5479,2686.8,2686.1,3.833]
[1740407552085,3.2078,2687.2,2686.1,3.833]
[1740407552395,3.2078,2686.9,2686.1,3.833]
[1740407552587,3.2078,2686.6,2686.1,3.833]
[1740407552783,0.74444,2686.3,2686.2,3.84]
[1740407552993,0.74442,2686.4,2686.2,0.0055787]
[1740407553284,3.95222,2686.3,2686.2,8.7e-06]
[1740407553684,3.2078,2686.3,2686.2,8.7e-06]
[1740407553892,3.95222,2686.3,2686.2,40.8000087]
[1740407554196,3.95222,2686.3,2686.2,8.7e-06]
[1740407555086,9.95222,2686.3,2686.2,8.7e-06]
[1740407555788,9.2078,2686.3,2684.9,3.843]
[1740407555999,3.2078,2685.2,2684.7,3.2078]
[1740407556290,1.8619,2685.1,2684.4,3.2078]
[1740407556488,3.2078,2684.5,2683.7,3.7884]
[1740407556695,3.2078,2684.5,2683.8,4.38034176]
[1740407556990,0.74506,2684.1,2683.8,3.841]
[1740407557191,0.0055787,2684.4,2683.9,0.0055787]
[1740407557395,3.2078,2684.3,2683.9,0.0055787]
[1740407558293,3.95286,2684.0,2683.9,0.0055787]
[1740407558489,3.2133787,2684.4,2683.9,0.0055787]
[1740407558796,3.2078,2684.0,2683.9,0.0055787]
[1740407558997,0.74506,2684.0,2683.9,0.0055787]
[1740407559197,3.2078,2684.0,2683.9,0.7506687]
[1740407559392,3.95286,2684.0,2683.9,0.0055787]
[1740407559790,3.95286,2684.0,2683.9,40.8055787]
[1740407560087,9.95286,2684.0,2683.9,8.7e-06]
[1740407560288,3.95286,2684.0,2683.9,8.7e-06]
[1740407560492,13.80986,2684.0,2683.9,8.7e-06]
[1740407561196,3.95286,2684.0,2683.9,8.7e-06]
[1740407562094,9.95286,2684.0,2683.9,8.7e-06]
[1740407562389,3.2078,2684.0,2683.9,8.7e-06]
[1740407562591,3.95286,2684.0,2683.9,8.7e-06]
[1740407562991,3.2078,2684.0,2683.9,8.7e-06]
[1740407563191,3.2078,2684.3,2683.9,8.7e-06]
[1740407563394,0.0055787,2684.4,2683.9,8.7e-06]
[1740407563395,0.0055787,2684.4,2683.9,1.8627087]
[1740407563593,0.0055787,2684.4,2684.3,3.95278]
[1740407563796,3.7862,2685.5,2684.5,1.86231]
[1740407563991,0.74489,2684.7,2684.4,0.74494]
[1740407564186,1.86197,2685.0,2683.9,3.2078087]
[1740407564391,3.2078,2684.8,2684.2,3.2078]
[1740407564598,3.2078,2684.8,2684.0,3.2078]
[1740407564899,3.2078,2684.8,2684.1,3.87]
[1740407565102,0.74494,2684.5,2684.1,3.87]
[1740407565300,0.0055787,2684.7,2684.4,3.2078]
[1740407565501,0.0055787,2684.7,2684.6,3.9527]
[1740407565704,0.0055787,2684.7,2684.6,4.6109]
[1740407566394,3.2078,2685.6,2684.6,15.31567339]
[1740407566598,0.74472,2685.3,2685.1,0.74475]
[1740407566895,0.74472,2685.3,2685.2,3.876]
[1740407567100,3.2078,2685.3,2684.4,3.88]
[1740407567297,5.06983,2685.0,2684.0,3.892]
[1740407567599,0.0055787,2684.8,2684.2,0.0055787]
[1740407567799,0.74498,2684.3,2684.2,0.0055787]
[1740407568598,3.2133787,2684.8,2684.2,0.0055787]
[1740407568803,0.74498,2684.3,2684.2,0.0055787]
[1740407569497,5.75526,2684.6,2684.2,0.0055787]
[1740407569498,3.893,2684.6,2684.2,0.0055787]
[1740407569703,0.74498,2684.3,2684.2,0.0055787]
[1740407569903,3.2133787,2684.8,2684.2,0.0055787]
[1740407570100,0.74498,2684.3,2684.2,0.0055787]
[1740407571096,0.74498,2684.3,2684.2,8.7e-06]
[1740407571406,6.74498,2684.3,2684.2,8.7e-06]
[1740407571601,0.74498,2684.3,2684.2,8.7e-06]
[1740407574304,6.74498,2684.3,2684.2,8.7e-06]
[1740407575104,6.74498,2684.3,2682.5,3.7551]
[1740407575105,6.0,2684.3,2683.0,40.8]
[1740407575304,0.74531,2683.1,2683.0,40.8]
[1740407575606,0.74531,2683.1,2683.0,41.36830795]
[1740407576104,0.74531,2683.1,2683.0,40.8]
[1740407576407,0.74531,2683.1,2683.0,41.36851079]
[1740407576606,0.00558951,2683.3,2683.0,44.0078]
[1740407576809,0.00558951,2683.3,2683.2,0.74528]
[1740407577102,0.00558951,2683.3,2683.2,1.47795159]
[1740407577407,0.75084951,2683.3,2683.2,1.47795159]
[1740407577604,0.00558951,2683.3,2683.2,2.22323159]
[1740407578102,0.75084951,2683.3,2683.2,1.47795159]
[1740407578305,0.75084951,2683.3,2683.2,1.47913267]
[1740407578702,0.75084951,2683.3,2683.2,0.56889718]
[1740407579213,0.00558951,2683.3,2683.2,2.22409638]
[1740407579398,0.00558951,2683.3,2683.2,1.47881638]
[1740407579604,0.75084951,2683.3,2683.2,1.47881638]
[1740407580098,3.95864951,2683.3,2683.2,0.56889718]
[1740407580299,9.21338951,2683.3,2682.8,0.00558951]
[1740407580505,1.86382,2682.4,2681.4,3.97589004]
[1740407580699,0.7457,2681.7,2681.6,0.74571]
[1740407580905,3.2078,2681.8,2681.6,41.71005101]
[1740407581102,0.7457,2681.7,2681.6,40.8]
[1740407581507,0.74569,2681.8,2681.6,40.8]
[1740407581709,0.00558951,2681.9,2681.6,40.8]
[1740407581908,0.7457,2681.8,2681.6,40.8]
[1740407582104,0.00558951,2681.9,2681.8,0.74567]
[1740407582406,0.7457,2681.7,2681.6,44.0078]
[1740407582611,0.7457,2681.7,2681.6,40.8]
[1740407582805,0.7457,2681.7,2681.4,0.00558951]
[1740407582806,0.74576,2681.5,2681.4,0.00558951]
[1740407583008,0.74594,2680.9,2680.7,0.74597]
[1740407583206,3.2078,2681.5,2680.8,40.8]
[1740407583513,3.2078,2681.5,2680.2,8.7873057]
[1740407583514,1.86461,2681.2,2680.2,8.7873057]
[1740407583707,3.2078,2680.8,2680.2,8.7873057]
[1740407583908,0.5534,2681.1,2680.1,3.2078]
[1740407584212,0.74588,2681.1,2680.4,3.2078]
[1740407584405,0.74588,2681.1,2680.2,42.67087951]
[1740407584406,3.2078,2681.0,2680.2,40.80558951]
[1740407584707,0.74609,2680.3,2680.2,0.00558951]
[1740407584905,7.1098,2680.3,2679.4,3.2078]
[1740407585105,0.74631,2679.5,2679.4,3.2078]
[1740407585411,3.901,2679.8,2678.8,11.9951057]
[1740407585708,3.2078,2679.6,2678.8,8.7873057]
[1740407585915,0.74637,2679.3,2678.8,11.9951057]
[1740407586106,0.00558951,2679.5,2678.9,0.00375592]
[1740407586409,0.74645,2679.0,2678.9,0.00375592]
[1740407586607,3.95425,2679.0,2678.9,0.00375592]
[1740407586807,9.95425,2679.0,2678.9,0.00375592]
[1740407587010,0.00558951,2679.5,2679.2,0.74637]
[1740407587310,0.00558951,2679.5,2679.4,0.74634]
[1740407587514,0.00558951,2679.5,2678.9,0.00375592]
[1740407587808,0.00558951,2679.5,2679.0,0.00440876]
[1740407588212,0.74635,2679.4,2679.0,0.00440876]
[1740407588406,0.00558951,2679.5,2679.2,3.2078]
[1740407588607,0.00558951,2679.5,2679.2,3.95418]
[1740407588805,0.00558951,2679.5,2679.0,0.00440876]
[1740407589102,3.21338951,2679.5,2679.1,0.74641]
[1740407589307,3.21338951,2679.5,2679.0,40.80440876]
[1740407589910,0.74642,2679.1,2679.0,40.80440876]
[1740407590111,0.74642,2679.1,2679.0,0.00440876]
[1740407590315,6.74642,2679.1,2679.0,8.76e-06]
[1740407590716,6.0,2679.1,2678.1,40.8]
[1740407590907,3.2078,2678.6,2677.6,3.898]
[1740407591103,1.86628,2678.8,2677.7,0.7468]
[1740407591104,0.74677,2677.9,2677.7,0.7468]
[1740407591308,3.2078,2678.5,2677.7,45.87485]
[1740407591615,0.74662,2678.4,2678.1,0.74669]
[1740407591911,3.2078,2678.8,2678.6,0.74655]
[1740407592113,0.00560004,2678.5,2678.4,0.7466]
[1740407592515,0.00560004,2678.5,2678.4,45.4386]
[1740407592708,3.7733,2679.7,2678.4,50.692]
[1740407593014,0.74616,2680.1,2679.8,0.74623]
[1740407593308,3.2078,2680.4,2679.7,3.2078]
[1740407593510,0.7462,2679.9,2679.7,3.2078]
[1740407593809,3.2078,2680.4,2679.7,3.2078]
[1740407594009,0.00560004,2680.1,2679.7,3.2078]
[1740407594213,0.00560004,2680.1,2679.5,0.00560004]
[1740407594214,0.74629,2679.6,2679.5,0.00560004]
[1740407594404,2.99260004,2680.1,2679.5,0.00560004]
[1740407594605,6.20040004,2680.1,2679.5,3.21340004]
[1740407594814,0.74621,2679.9,2679.5,3.21340004]
[1740407595116,2.99260004,2680.1,2679.5,3.21340004]
[1740407595317,0.74629,2679.6,2679.5,3.21340004]
[1740407595611,0.74629,2679.6,2679.5,0.00560004]
[1740407596013,6.74629,2679.6,2679.5,0.00560004]
[1740407596210,6.74629,2679.6,2679.5,4e-08]
[1740407597113,0.74629,2679.6,2679.5,4e-08]
[1740407597608,3.873,2679.7,2679.5,4e-08]
[1740407597813,0.74629,2679.6,2679.5,4e-08]
[1740407598420,6.74629,2679.6,2679.5,4e-08]
[1740407599011,3.73219,2679.1,2677.7,40.8]
[1740407599208,0.74679,2677.8,2677.7,40.8]
[1740407599408,3.882,2678.3,2677.7,40.8]
[1740407600015,3.2078,2678.5,2677.7,44.0078]
[1740407600215,3.2078,2678.2,2677.7,44.0078]
[1740407600405,0.00560004,2678.3,2677.7,44.0078]
[1740407600609,0.74674,2678.0,2677.9,0.74675]
[1740407600811,0.74674,2678.0,2677.7,44.0078]
[1740407600812,0.00560004,2678.3,2677.7,44.0078]
[1740407601209,0.74679,2677.8,2677.7,44.0078]
[1740407601413,0.74678,2677.9,2677.7,44.0078]
[1740407601614,0.74679,2677.8,2677.7,44.0078]
[1740407602120,0.74679,2677.8,2677.7,40.8]
[1740407602918,3.2078,2678.1,2677.7,40.8]
[1740407603119,0.74679,2677.8,2677.7,40.8]
[1740407603617,0.00560004,2678.3,2677.7,40.8]
[1740407603819,0.00560004,2678.3,2678.2,0.74668]
[1740407604012,3.2078,2679.3,2678.2,3.2078]
[1740407604213,9.48073,2679.9,2678.9,1.86619]
[1740407604413,7.6152,2679.9,2679.6,0.74627]
[1740407604715,0.74626,2679.7,2679.6,40.8]
[1740407604915,3.864,2679.7,2678.6,3.2078]
[1740407605125,3.2078,2679.3,2678.6,7.0718]
[1740407605320,0.74645,2679.0,2678.9,0.00560004]
[1740407605825,3.2078,2679.3,2678.9,0.00560004]
[1740407606021,0.74645,2679.0,2678.9,0.00560004]
[1740407606922,6.74645,2679.0,2678.9,4e-08]
[1740407608020,0.74685,2677.6,2677.4,3.2078]
[1740407608226,7.0618,2678.1,2677.5,0.74687]
[1740407608423,0.74687,2677.5,2677.4,3.2078]
[1740407608821,3.2078,2677.8,2677.0,3.2078]
[1740407609027,3.2078,2677.8,2677.1,0.54282937]
[1740407609330,0.00560004,2677.7,2677.3,3.2078]
[1740407609518,0.74686,2677.6,2677.3,3.95471]
[1740407609724,0.74694,2677.3,2677.0,3.2078]
[1740407609926,0.74692,2677.4,2677.2,0.74695]
[1740407610227,0.00560004,2677.7,2677.6,0.74684]
[1740407610718,0.00560004,2677.7,2677.6,4.49861113]
[1740407610915,5.70933,2678.8,2678.1,0.74669]
[1740407611120,0.74663,2678.4,2678.2,0.74667]
[1740407611319,5.07405,2678.9,2678.4,0.74659]
[1740407611320,0.74656,2678.7,2678.4,0.74659]
[1740407611520,3.2078,2678.9,2678.2,3.2078]
[1740407611722,3.7913,2679.2,2678.5,3.2078]
[1740407611921,3.2078,2678.9,2678.0,3.2078]
[1740407612123,0.74654,2678.7,2678.6,0.00560004]
[1740407612621,6.74654,2678.7,2678.6,4e-08]
[1740407613231,7.30794,2678.7,2678.6,4e-08]
[1740407614533,0.74654,2678.7,2678.6,4e-08]
[1740407615025,0.74653,2678.8,2678.6,4e-08]
[1740407615231,1.86617,2679.0,2678.6,4e-08]
[1740407615430,0.74654,2678.7,2678.6,4e-08]
[1740407615630,0.74654,2678.7,2678.6,3.20780004]
[1740407615827,0.74654,2678.7,2678.6,4e-08]
[1740407616333,3.21340004,2679.1,2678.6,4e-08]
[1740407616724,3.21340004,2679.1,2678.6,3.20780004]
[1740407617029,0.74654,2678.7,2678.6,4e-08]
[1740407617335,0.00560004,2679.1,2678.6,3.75368969]
[1740407617541,0.00560004,2679.1,2679.0,3.95425]
[1740407617728,0.00560004,2679.1,2679.0,0.54588965]
[1740407617923,0.00560004,2679.1,2679.0,4.50013965]
[1740407618426,0.00560004,2679.1,2679.0,8.31506451]
[1740407618730,0.74621,2679.9,2679.7,0.74625]
[1740407618931,0.74621,2679.9,2679.0,15.43674451]
[1740407618932,3.2078,2680.1,2679.1,3.2078]
[1740407619135,3.2078,2679.9,2679.2,0.54576289]
[1740407619430,3.2078,2679.9,2679.3,0.54576289]
[1740407619729,0.74631,2679.5,2679.4,0.54576289]
[1740407620035,0.7463,2679.6,2679.4,0.54569246]
[1740407620237,0.00560004,2679.9,2679.3,40.8]
[1740407620437,0.74625,2679.8,2679.4,3.75332686]
[1740407620735,0.00560004,2679.9,2679.5,0.54552686]
[1740407620934,0.00560004,2679.9,2679.6,0.54552686]
[1740407621130,0.00560004,2679.9,2679.7,0.54550813]
[1740407621326,0.00560004,2679.9,2679.4,3.81]
[1740407621327,0.00560004,2679.9,2679.8,1.29153455]
[1740407622434,0.00560004,2679.9,2679.8,1.29122057]
[1740407623240,0.75180004,2679.9,2679.8,0.54499057]
[1740407623834,0.75180004,2679.9,2679.0,3.2078]
[1740407623835,0.00560004,2679.9,2679.0,3.2078]
[1740407624041,0.74642,2679.1,2679.0,3.2078]
[1740407624336,0.74647,2679.0,2678.8,0.7465]
[1740407624538,3.79860004,2679.9,2678.4,0.74661]
[1740407624539,0.74654,2678.7,2678.4,0.74661]
[1740407624734,1.86607,2679.1,2678.3,3.2078]
[1740407624928,0.74654,2678.7,2678.2,8.7873057]
[1740407625334,0.74665,2678.3,2678.2,3.49904407]
[1740407625538,7.75345,2678.3,2678.2,1.04467407]
[1740407625739,13.75345,2678.3,2678.2,4.07e-06]
[1740407625937,0.74669,2678.2,2676.9,3.2078]
[1740407626130,13.0068,2678.3,2676.9,3.2078]
[1740407626131,3.2078,2677.5,2676.9,3.2078]
[1740407626334,3.2078,2677.0,2676.0,10.91932168]
[1740407626531,0.74701,2677.0,2676.9,0.00560004]
[1740407626831,3.2078,2677.0,2676.9,0.00560004]
[1740407627036,3.814,2677.2,2676.9,0.00560004]
[1740407627838,3.2078,2677.3,2677.0,0.747]
[1740407628036,0.00560004,2677.5,2677.1,3.2078]
[1740407628343,0.00560004,2677.5,2677.4,3.2078]
[1740407628639,0.00560004,2677.5,2676.9,3.21340004]
[1740407629034,0.00560004,2677.5,2676.9,0.00560004]
[1740407629342,0.00560004,2677.5,2677.4,0.7469]
[1740407629637,3.21340004,2677.5,2676.9,0.00560004]
[1740407630040,3.21340004,2677.5,2677.0,0.74699]
[1740407630340,3.21340004,2677.5,2676.9,0.00560004]
[1740407630636,0.7469,2677.4,2676.9,0.00560004]
[1740407630843,3.2078,2677.2,2676.9,0.00560004]
[1740407631134,0.74718,2676.5,2676.2,3.2078]
[1740407631339,3.2078,2676.5,2675.6,3.2078]
[1740407631533,3.2078,2676.5,2676.1,0.74725]
[1740407631734,7.0268,2676.5,2675.6,3.2078]
[1740407632136,7.0268,2676.5,2676.1,0.74725]
[1740407632434,7.0268,2676.5,2675.6,3.2078]
[1740407632435,0.00560004,2676.3,2675.6,3.2078]
[1740407632738,0.00560004,2676.3,2675.6,1.86851]
[1740407632936,0.00560004,2676.3,2676.1,0.74725]
[1740407633138,0.00560004,2676.3,2676.2,0.74723]
[1740407633740,0.00560004,2676.3,2675.6,3.811]
[1740407634141,0.00560004,2676.3,2676.2,0.74723]
[1740407634643,3.21340004,2676.3,2675.7,40.8]
[1740407634842,3.96061004,2676.3,2675.7,40.8]
[1740407635139,3.21340004,2676.3,2675.9,0.74731]
[1740407635338,3.2078,2676.0,2675.7,40.8]
[1740407635543,3.811,2675.9,2675.8,0.74735]
[1740407636040,0.74742,2675.6,2674.9,3.2078]
[1740407636239,3.2078,2675.6,2675.5,0.74743]
[1740407636633,3.2078,2675.6,2675.0,1.86893]
[1740407637038,3.2078,2675.6,2675.5,0.74743]
[1740407637240,0.74743,2675.5,2674.9,3.2078]
[1740407637538,3.2078,2675.6,2674.9,3.2078]
[1740407637739,3.2078,2675.6,2675.5,0.74743]
[1740407638334,3.2078,2675.6,2674.9,3.2078]
[1740407638535,3.2078,2675.6,2675.5,0.74743]